fUSD/lending_fUSD_20260116
["ID","MTS","AMOUNT","RATE_DAILY","PERIOD"]
[402129878,1768533079744,-279.95645368,0.00035419,90]
[402129879,1768533079862,-720.04354632,0.00035419,90]
[402129880,1768533079872,-1000.0,0.00035419,90]
[402129881,1768533079881,-1000.0,0.00035419,90]
[402129882,1768533079891,-1000.0,0.00035419,90]
[402129883,1768533079900,-806.91514067,0.00035419,90]
[402129884,1768533079912,-193.08485933,0.00035419,90]
[402129885,1768533079921,-1000.0,0.00035419,90]
[402129886,1768533079931,-613.66,0.00035616,10]
[402129887,1768533079941,-500.0,0.00035616,10]
[402129888,1768533079951,-180.6129094,0.0003579,2]
[402129889,1768533079960,-197.33337094,0.0003589,10]
[402129890,1768533109532,-250.0,0.00015232,2]
[402129891,1768533113324,-273.86999409,0.00015232,2]
[402129892,1768533116079,-274.76701349,0.00015232,2]
[402129893,1768533117744,-193.17305488,0.00015232,2]
[402129894,1768533120382,-158.76394628,0.00015232,2]
[402129895,1768533123490,-172.11226753,0.00015148,2]
[402129896,1768533123512,-213.45241374,0.00015231,2]
[402129897,1768533126176,-86.54758626,0.00015231,2]
[402129898,1768533126204,-73.25241374,0.00015232,2]
[402129899,1768533131845,-300.0,0.00015231,2]
[402129900,1768533131870,-18.67722561,0.00015231,2]
[402129901,1768533133439,-294.38879118,0.00015231,2]
[402129902,1768533136074,-180.67137245,0.00015231,2]
[402129903,1768533137839,-106.26261076,0.00015231,2]
[402129904,1768533137866,-253.76440543,0.00015232,2]
[402129905,1768533140132,-432.28167555,0.00015232,2]
[402129906,1768533142301,-171.71190336,0.00015232,2]
[402129907,1768533143842,-274.80143649,0.00015232,2]
[402129908,1768533145506,-193.87050116,0.00015232,2]
[402129909,1768533147625,-287.44961372,0.00015232,2]
[402129910,1768533149692,-326.1348037,0.00015232,2]
[402129911,1768533151228,-343.85765004,0.00015232,2]
[402129912,1768533153531,-414.17549553,0.00015232,2]
[402129913,1768533157514,-166.46688855,0.00015232,2]
[402129914,1768533158655,-250.0,0.00015232,2]
[402129915,1768533161362,-290.77299761,0.00015232,2]
[402129916,1768533163186,-321.07094298,0.00015232,2]
[402129917,1768533165786,-166.64583723,0.00015232,2]
[402129918,1768533167628,-284.67298197,0.00015232,2]
[402129919,1768533169678,-303.20627472,0.00015232,2]
[402129920,1768533171516,-400.36306674,0.00015232,2]
[402129921,1768533174362,-167.55253785,0.00015232,2]
[402129922,1768533176313,-460.35659123,0.00015232,2]
[402129923,1768533179402,-396.53446097,0.00015232,2]
[402129924,1768533182001,-297.60139504,0.00015231,2]
[402129925,1768533185748,-2.39860496,0.00015231,2]
[402129926,1768533185774,-553.21704651,0.00015232,2]
[402129927,1768533187382,-229.4356474,0.00015232,2]
[402129928,1768533189343,-405.01039382,0.00015232,2]
[402129929,1768533191471,-426.1348037,0.00015232,2]
[402129930,1768533195401,-318.68313666,0.00015232,2]
[402129931,1768533195484,-990938.0024846,0.00015232,2]
[402129932,1768533195507,-1000.0,0.00015233,2]
[402129933,1768533195530,-157.1172006,0.00015248,2]
[402129934,1768533195553,-500.0,0.00015332,2]
[402129935,1768533195576,-500.0,0.00015332,2]
[402129936,1768533195598,-500.0,0.00015332,2]
[402129937,1768533195620,-500.0,0.00015332,2]
[402129938,1768533195644,-500.0,0.00015332,2]
[402129939,1768533195667,-500.0,0.00015332,2]
[402129940,1768533195689,-500.0,0.00015332,2]
[402129941,1768533195712,-500.0,0.00015332,2]
[402129942,1768533195735,-500.0,0.00015332,2]
[402129943,1768533195758,-500.0,0.00015332,2]
[402129944,1768533195781,-500.0,0.00015332,2]
[402129945,1768533195803,-500.0,0.00015332,2]
[402129946,1768533195825,-500.0,0.00015332,2]
[402129947,1768533195847,-507.89334507,0.00015332,2]
[402129948,1768533195870,-500.0,0.00015733,2]
[402129949,1768533195892,-396.98696973,0.00015733,2]
[402129950,1768533207548,826.89811274,0.00015133,2]
[402129951,1768533214205,-103.01303027,0.00015733,2]
[402129952,1768533214231,-500.0,0.00015733,2]
[402129953,1768533214253,-231.70849186,0.00015733,2]
[402129954,1768533242956,500.0,0.00015332,2]
[402129955,1768533243197,500.0,0.00015332,2]
[402129956,1768533243426,500.0,0.00015332,2]
[402129957,1768533248007,487761.6938,0.00015132,2]
[402129958,1768533280588,-500.0,0.00016213,2]
[402129959,1768533280918,-510.0,0.00016358,2]
[402129960,1768533280941,-600.0,0.00016754,2]
[402129961,1768533280963,-193.55917639,0.00016754,2]
[402129962,1768533280986,-195.0,0.00016755,2]
[402129963,1768533281008,-235.95826592,0.00016773,2]
[402129964,1768533281031,-250.0,0.00017,2]
[402129965,1768533315023,253160.4419648,0.00015234,2]
[402129966,1768533356919,6230.1312058,0.00015237,2]
[402129967,1768533419801,594.61669288,0.00015332,2]
[402129968,1768533476010,166.33,0.00016712,2]
[402129969,1768533528706,500.0,0.00015332,2]
[402129970,1768533528936,500.0,0.00015332,2]
[402129971,1768533529174,500.0,0.00015332,2]
[402130034,1768533721698,500.0,0.00016996,2]
[402130035,1768533724131,200.0,0.00016996,2]
[402130036,1768533729030,-341.0058,0.00017315,2]
[402130037,1768533729056,-297.0,0.00017369,2]
[402130038,1768533729079,-718.929716,0.00017369,2]
[402130039,1768533729104,-1732.0,0.00017369,2]
[402130040,1768533729130,-1732.0,0.00017415,2]
[402130041,1768533729154,-1732.0,0.00017484,2]
[402130042,1768533729179,-1200.0,0.00017568,2]
[402130043,1768533729203,-151.0,0.00017569,2]
[402130044,1768533729227,-151.0,0.00017569,2]
[402130045,1768533729250,-6230.1312058,0.00017569,2]
[402130046,1768533729274,-151.0,0.00017582,2]
[402130047,1768533729297,-151.0,0.00017582,2]
[402130048,1768533729320,-1732.0,0.00017589,2]
[402130049,1768533729343,-1732.0,0.00017607,2]
[402130050,1768533729367,-2500.0,0.00017672,2]
[402130051,1768533729393,-1000000.0,0.00017672,2]
[402130052,1768533729416,-169.35,0.00017762,3]
[402130053,1768533729440,-550.0,0.0001777,2]
[402130054,1768533729463,-178729.5832782,0.00017772,2]
[402130055,1768533747095,-1101.0,0.00017219,2]
[402130056,1768533747119,-151.0,0.00017668,2]
[402130057,1768533747143,-151.0,0.00017668,2]
[402130058,1768533747166,-151.0,0.00017761,2]
[402130059,1768533747190,-151.0,0.00017761,2]
[402130060,1768533747227,-151.0,0.00017761,2]
[402130061,1768533747252,-151.0,0.00017761,2]
[402130062,1768533747277,-151.0,0.00017761,2]
[402130063,1768533747301,-151.0,0.00017761,2]
[402130064,1768533747324,-151.0,0.00017761,2]
[402130065,1768533747348,-151.0,0.00017761,2]
[402130066,1768533747371,-151.0,0.00017761,2]
[402130067,1768533747393,-151.0,0.00017761,2]
[402130068,1768533747416,-151.0,0.00017761,2]
[402130069,1768533747440,-151.0,0.00017761,2]
[402130070,1768533747463,-151.0,0.00017761,2]
[402130071,1768533747487,-151.0,0.00017761,2]
[402130072,1768533747512,-151.0,0.00017761,2]
[402130073,1768533747538,-182.09059716,0.00017761,2]
[402130074,1768533747561,-74430.8586866,0.00017772,2]
[402130075,1768533747584,-999.0,0.00017784,3]
[402130076,1768533747616,-1732.0,0.00017879,2]
[402130077,1768533747641,-1732.0,0.00017892,2]
[402130078,1768533747665,-1000.0,0.000179,2]
[402130079,1768533747689,-1000.0,0.000179,2]
[402130080,1768533747714,-1000.0,0.000179,2]
[402130081,1768533747738,-1000.0,0.000179,2]
[402130082,1768533747761,-1000.0,0.000179,2]
[402130083,1768533747785,-752.305,0.000179,2]
[402130084,1768533747810,-1732.0,0.00017951,2]
[402130085,1768533750487,151.0,0.00017639,2]
[402130086,1768533751520,151.0,0.00017639,2]
[402130087,1768533753121,1703.1628595,0.00030137,120]
[402130088,1768533921863,333.0,0.00030136,120]
[402130089,1768533929494,150028.98919971,0.00016,2]
[402130090,1768533933236,15084.69728878,0.00016761,2]
[402130091,1768533935076,888.0,0.00030136,120]
[402130092,1768534010177,-354.81044866,0.00017555,2]
[402130093,1768534013117,5000.00360821,0.000162,5]
[402130097,1768534031474,500.0,0.00015773,2]
[402130098,1768534031532,1000.0,0.00016321,2]
[402130099,1768534031586,1000.0,0.00016868,2]
[402130100,1768534055446,4422.96077354,0.00015366,2]
[402130101,1768534115401,423329.2386765,0.00016,4]
[402130102,1768534125163,500.0,0.00015332,2]
[402130103,1768534125442,500.0,0.00015332,2]
[402130104,1768534125862,500.0,0.00015332,2]
[402130105,1768534126089,518.46092214,0.00015332,2]
[402130106,1768534150643,500.0,0.00015773,2]
[402130107,1768534150696,1000.0,0.00016321,2]
[402130108,1768534150753,500.0,0.00016868,2]
[402130109,1768534154430,1000.0,0.00016321,2]
[402130110,1768534154489,502.9739671,0.00016868,2]
[402130111,1768534155538,500.0,0.00015773,2]
[402130112,1768534156045,500.0,0.00015773,2]
[402130113,1768534156100,1000.0,0.00016321,2]
[402130114,1768534156150,503.50213235,0.00016868,2]
[402130115,1768534207127,500.0,0.00015773,2]
[402130116,1768534207166,1000.0,0.00016321,2]
[402130117,1768534207196,1500.0,0.00016868,2]
[402130118,1768534212055,500.0,0.00015773,2]
[402130119,1768534212116,427.25960188,0.00016321,2]
[402130134,1768534231378,-1200.0,0.00017023,2]
[402130135,1768534231391,-300.0,0.00017023,2]
[402130136,1768534231404,-300.0,0.00017023,2]
[402130137,1768534231417,-376.88778794,0.00017024,7]
[402130138,1768534231429,-994.61283531,0.00017024,7]
[402130139,1768534231442,-1754.61493671,0.00017024,7]
[402130140,1768534231455,-2624.7990087,0.00017024,7]
[402130141,1768534231469,-3551.4369,0.00017024,7]
[402130142,1768534231482,-2955.0,0.00017342,2]
[402130143,1768534231494,-2006.75696579,0.00017416,2]
[402130144,1768534231508,-1496.14648257,0.00017555,2]
[402130145,1768534231521,-714.72631749,0.00017574,2]
[402130146,1768534231533,-216.65735106,0.00017593,2]
[402130147,1768534231545,-550.0,0.0001767,2]
[402130148,1768534231556,-35134.4419,0.00017671,2]
[402130151,1768534231568,-2955.0,0.00017684,2]
[402130153,1768534231580,-157.1172006,0.00017691,2]
[402130155,1768534231592,-2955.0,0.00017708,2]
[402130157,1768534231604,-151.0,0.00017727,2]
[402130160,1768534231616,-151.0,0.00017727,2]
[402130162,1768534231627,-166.66,0.0001773,2]
[402130164,1768534231638,-151.0,0.0001773,2]
[402130166,1768534231650,-151.0,0.0001773,2]
[402130169,1768534231661,-151.0,0.00017735,2]
[402130171,1768534231673,-151.0,0.00017735,2]
[402130173,1768534231684,-515.59692643,0.00017771,2]
[402130175,1768534231696,-26644.6787976,0.000178,2]
[402130178,1768534231708,-2955.0,0.0001787,2]
[402130180,1768534231719,-1844.53834535,0.000179,2]
[402130182,1768534231730,-11605.81105195,0.000179,2]
[402130184,1768534231742,-4223.37006382,0.000179,2]
[402130187,1768534231754,-216.73549128,0.000179,2]
[402130189,1768534231766,-1648.72291872,0.000179,2]
[402130191,1768534231777,-410.48096367,0.000179,2]
[402130193,1768534231788,-385.39106935,0.00017906,2]
[402130196,1768534231800,-16132.05307043,0.00017906,2]
[402130198,1768534231815,-1159.94357071,0.00017906,2]
[402130201,1768534231833,-1095.14892138,0.00017906,2]
[402130206,1768534231871,-130.29337795,0.00017906,2]
[402130208,1768534231883,-347.19871157,0.0001799,2]
[402130211,1768534231898,-272.35546933,0.0001799,2]
[402130213,1768534231909,-619.5541809,0.0001799,2]
[402130215,1768534231921,-619.5541809,0.0001799,2]
[402130217,1768534231932,-165.19,0.0001799,2]
[402130220,1768534231945,-240.28138404,0.00017991,2]
[402130222,1768534231959,-261.22305558,0.00017991,2]
[402130224,1768534231970,-200.0,0.00017995,2]
[402130227,1768534231981,-151.56548484,0.00017995,2]
[402130229,1768534231995,-348.43451516,0.00017995,2]
[402130232,1768534232007,-151.0,0.00017995,2]
[402130234,1768534232018,-371.7070966,0.00017995,2]
[402130239,1768534232055,-128.2929034,0.00017995,2]
[402130241,1768534232066,-151.0,0.00017995,2]
[402130243,1768534232077,-500.0,0.00017995,2]
[402130245,1768534232090,-151.0,0.00017995,2]
[402130248,1768534232100,-500.0,0.00017995,2]
[402130250,1768534232112,-151.0,0.00017995,2]
[402130252,1768534232122,-31.10150371,0.00017995,2]
[402130255,1768534232136,-468.89849629,0.00017995,2]
[402130257,1768534232148,-151.0,0.00017995,2]
[402130259,1768534232159,-151.0,0.00017995,2]
[402130261,1768534232170,-500.0,0.00017995,2]
[402130263,1768534232181,-151.0,0.00017995,2]
[402130266,1768534232192,-500.0,0.00017995,2]
[402130268,1768534232205,-151.0,0.00017995,2]
[402130270,1768534232216,-500.0,0.00017995,2]
[402130272,1768534232227,-464.17874776,0.00017995,2]
[402130275,1768534232240,-35.82125224,0.00017995,2]
[402130277,1768534232251,-151.0,0.00017995,2]
[402130279,1768534232262,-500.0,0.00017995,2]
[402130281,1768534232273,-500.0,0.00017995,2]
[402130283,1768534232284,-151.0,0.00017995,2]
[402130286,1768534232295,-500.0,0.00017995,2]
[402130288,1768534232307,-500.0,0.00017995,2]
[402130290,1768534232319,-151.0,0.00017995,2]
[402130292,1768534232331,-500.0,0.00017995,2]
[402130294,1768534232343,-500.0,0.00017995,2]
[402130297,1768534232354,-300.65827193,0.00017995,2]
[402130299,1768534232366,-500.0,0.00017995,2]
[402130301,1768534232377,-200.0,0.00017995,2]
[402130303,1768534232388,-300.0,0.00017999,2]
[402130305,1768534232400,-308.44597563,0.00017999,2]
[402130308,1768534232411,-155.694,0.00017999,2]
[402130310,1768534232423,-323.59449843,0.00017999,2]
[402130312,1768534232435,-500.0,0.00017999,2]
[402130314,1768534232446,-478.40762195,0.00017999,2]
[402130317,1768534232458,-255.55470124,0.00017999,2]
[402130319,1768534232469,-448.83171129,0.00017999,2]
[402130321,1768534232480,-500.0,0.00017999,2]
[402130323,1768534232491,-500.0,0.00017999,2]
[402130325,1768534232503,-500.0,0.00017999,2]
[402130327,1768534232514,-500.0,0.00017999,2]
[402130330,1768534232526,-300.0,0.00017999,2]
[402130332,1768534232538,-500.0,0.00017999,2]
[402130334,1768534232549,-168.38733377,0.00017999,2]
[402130336,1768534232561,-427.89029697,0.00017999,2]
[402130339,1768534232574,-9621.35113966,0.00018,2]
[402130341,1768534232591,-8807.02278918,0.00018,2]
[402130516,1768534237382,-500.0,0.00017799,2]
[402130517,1768534237392,-354.88791769,0.00017799,2]
[402130518,1768534237401,-500.0,0.00017799,2]
[402130519,1768534237411,-500.0,0.00017799,2]
[402130520,1768534237420,-400.95252733,0.00017799,2]
[402130521,1768534237430,-500.0,0.00017799,2]
[402130522,1768534237439,-500.0,0.00017799,2]
[402130523,1768534237449,-500.0,0.00017799,2]
[402130524,1768534237462,-500.0,0.00017799,2]
[402130525,1768534237472,-252.29511492,0.00017799,2]
[402130526,1768534237481,-500.0,0.00017799,2]
[402130527,1768534237491,-500.0,0.00017799,2]
[402130528,1768534237500,-500.0,0.00017799,2]
[402130529,1768534237509,-500.0,0.00017799,2]
[402130530,1768534237519,-529.21474554,0.00017799,2]
[402130531,1768534237529,-500.0,0.00017799,2]
[402130532,1768534237538,-185.64568906,0.00017799,2]
[402130533,1768534237547,-500.0,0.00017799,2]
[402130534,1768534237557,-500.0,0.00017799,2]
[402130535,1768534237566,-500.0,0.00017799,2]
[402130536,1768534237575,-500.0,0.00017799,2]
[402130537,1768534237584,-500.0,0.00017799,2]
[402130538,1768534237594,-500.0,0.00017799,2]
[402130539,1768534237603,-500.0,0.00017799,2]
[402130540,1768534237612,-500.0,0.00017799,2]
[402130541,1768534237622,-500.0,0.00017799,2]
[402130542,1768534237632,-500.0,0.00017799,2]
[402130543,1768534237642,-500.0,0.00017799,2]
[402130544,1768534237651,-500.0,0.00017799,2]
[402130546,1768534237660,-500.0,0.00017799,2]
[402130548,1768534237670,-500.0,0.00017799,2]
[402130550,1768534237679,-500.0,0.00017799,2]
[402130552,1768534237689,-500.0,0.00017799,2]
[402130554,1768534237698,-500.0,0.00017799,2]
[402130556,1768534237708,-500.0,0.00017799,2]
[402130558,1768534237717,-500.0,0.00017799,2]
[402130560,1768534237727,-500.0,0.00017799,2]
[402130562,1768534237737,-262.85861305,0.00017799,2]
[402130564,1768534237747,-202486.86413456,0.00018,2]
[402130566,1768534237759,-24411.49273929,0.00018,2]
[402130568,1768534237770,-405.31094203,0.00018,2]
[402130571,1768534237790,-1604606.56383466,0.00018,2]
[402130576,1768534237828,-1841.6,0.00018,2]
[402130579,1768534237840,-4081.51319785,0.00018,2]
[402130581,1768534237852,-3490.71969994,0.00018,2]
[402130608,1768534238103,-1171.18885433,0.00018,2]
[402130611,1768534238116,-873.39,0.00018,2]
[402130613,1768534238127,-547.5100799,0.00018,2]
[402130615,1768534238138,-1316.2203478,0.00018,2]
[402130617,1768534238149,-919.38,0.00018,2]
[402130712,1768534239437,-11012.39199452,0.00018,2]
[402130719,1768534239494,-6733930.67238382,0.00018,2]
[402130731,1768534239600,-3576486.75319948,0.00018,2]
[402130774,1768534240035,-1.7e-07,0.00018,2]
[402130788,1768534240172,-1043.4873828,0.00018,2]
[402130791,1768534240184,-292.1668725,0.00018,2]
[402130958,1768534242505,-151.0,0.00017722,2]
[402130959,1768534242514,-990.95986912,0.00018,2]
[402130960,1768534242525,-13700.0,0.00018,2]
[402130961,1768534242560,-1369.29928135,0.00018,2]
[402130962,1768534242616,-3198.77275587,0.00018,2]
[402130963,1768534242627,-1220.52685329,0.00018,2]
[402130964,1768534242639,-1425.78080434,0.00018,2]
[402130965,1768534242743,-39.42338321,0.00018,2]
[402130983,1768534246320,-151.0,0.00017722,2]
[402130984,1768534246331,-196466.35763838,0.00018,2]
[402130985,1768534246344,-1249.90366847,0.00018,2]
[402130986,1768534246401,-1326.33065827,0.00018,2]
[402130987,1768534266730,500.0,0.00015773,2]
[402130988,1768534266788,1000.0,0.00016321,2]
[402130989,1768534266840,506.18752116,0.00016868,2]
[402130991,1768534471356,2484.0,0.00030136,120]
[402130992,1768534536146,1600.0,0.00025812,120]
[402130993,1768534549782,-392.59550603,0.00017208,2]
[402130994,1768534551139,-169.69853594,0.00017208,2]
[402130995,1768534556180,-156.73524702,0.00017208,2]
[402130996,1768534624431,455.55444862,0.00015773,2]
[402130997,1768534671479,-351.82534366,0.00017044,2]
[402130998,1768534676054,-347.95371225,0.00017044,2]
[402130999,1768534730455,-300.22094409,0.00017044,2]
[402131000,1768534730480,-133.73072636,0.00017208,2]
[402131001,1768534732118,-195.8197408,0.00017208,2]
[402131002,1768534734327,-178.41953284,0.00017208,2]
[402131003,1768534758315,150.0,0.00016874,2]
[402131005,1768534873001,2554.72,0.00016884,2]
[402131006,1768534896713,170.24,0.00019178,30]
[402131007,1768534901904,158.01,0.00013535,2]
[402131008,1768534902121,158.01,0.00014889,2]
[402131009,1768534902334,158.01,0.00016242,2]
[402131010,1768534951041,2490.09,8.444e-05,2]
[402131011,1768534951237,2490.09,8.889e-05,2]
[402131012,1768534951823,2490.09,9.333e-05,2]
[402131013,1768534951894,2490.09,9.778e-05,2]
[402131014,1768534951963,2490.09,0.00010222,2]
[402131015,1768534952027,2490.09,0.00010667,2]
[402131016,1768534952228,2490.09,0.00011111,2]
[402131017,1768534952440,2490.09,0.00011555,2]
[402131018,1768534952632,2490.09,0.00012,2]
[402131019,1768534952854,2490.09,0.00012444,2]
[402131020,1768534953097,2490.09,0.00012889,2]
[402131021,1768534953310,2490.09,0.00013333,2]
[402131022,1768534953511,2490.09,0.00013778,2]
[402131023,1768534954477,2490.09,0.00014222,2]
[402131024,1768534954543,2490.09,0.00014667,2]
[402131025,1768534954687,2490.09,0.00015111,2]
[402131026,1768534959848,2490.09,0.00015555,2]
[402131027,1768534960078,2490.09,0.00016,2]
[402131028,1768534960279,2490.09,0.00016444,2]
[402131029,1768534960490,2490.09,0.00016889,2]
[402131031,1768535037443,43028.18,0.00016907,2]
[402131032,1768535096304,7161.97,0.00014173,2]
[402131033,1768535172449,150.0,0.000162,2]
[402131034,1768535172490,150.0,0.000165,2]
[402131035,1768535172523,150.0,0.0001665,2]
[402131036,1768535172576,150.0,0.000168,2]
[402131037,1768535172611,150.0,0.0001695,2]
[402131038,1768535173053,150.0,0.0001635,2]
[402131046,1768535431488,-150.0,0.000171,2]
[402131047,1768535431498,-880.97071101,0.00017208,2]
[402131048,1768535431507,-150.0,0.0001725,2]
[402131049,1768535431516,-150.0,0.000174,2]
[402131050,1768535431526,-20.17521338,0.0001747,2]
[402131051,1768535431536,-1179.82478662,0.0001747,2]
[402131052,1768535431546,-103.92126381,0.0001747,2]
[402131053,1768535431663,-196.07873619,0.0001747,2]
[402131054,1768535431672,-550.70121854,0.00017471,2]
[402131055,1768535431683,-3571.53153388,0.00017471,2]
[402131056,1768535431698,-18754.82954758,0.00017471,2]
[402131057,1768535431708,-1556.47749087,0.00017471,2]
[402131059,1768535431717,-151.0,0.0001748,2]
[402131061,1768535431726,-151.0,0.0001748,2]
[402131063,1768535431735,-150.0,0.0001755,2]
[402131065,1768535431744,-4500.45660038,0.00017561,2]
[402131066,1768535431753,-300.0,0.00017569,2]
[402131067,1768535431762,-550.0,0.0001757,2]
[402131068,1768535431772,-158.01,0.00017596,2]
[402131069,1768535431781,-1000.0,0.00017683,2]
[402131070,1768535431790,-150.0,0.000177,2]
[402131071,1768535431799,-5857.0,0.000177,2]
[402131072,1768535431808,-150.99,0.00017728,2]
[402131073,1768535431817,-3227.42,0.00017728,2]
[402131074,1768535431827,-3993.94066004,0.0001775,2]
[402131075,1768535431836,-3993.94065998,0.00017767,2]
[402131076,1768535431845,-3993.94065998,0.00017783,2]
[402131077,1768535431855,-8687.08375161,0.000178,3]
[402131079,1768535431864,-3993.94065998,0.000178,2]
[402131081,1768535431873,-3993.94065998,0.00017817,2]
[402131083,1768535431882,-3993.94065998,0.00017833,2]
[402131084,1768535431891,-150.0,0.0001785,2]
[402131086,1768535431901,-3993.94065998,0.0001785,2]
[402131087,1768535431910,-207.59580068,0.00017855,2]
[402131089,1768535431920,-233.26815907,0.00017864,7]
[402131091,1768535431930,-348.95521512,0.00017864,7]
[402131092,1768535431939,-472.1409,0.00017864,7]
[402131094,1768535431949,-500.0,0.00017866,2]
[402131096,1768535431958,-392.13497173,0.00017866,2]
[402131097,1768535431967,-500.0,0.00017866,2]
[402131099,1768535431976,-187.29396545,0.00017866,2]
[402131101,1768535431985,-500.0,0.00017866,2]
[402131103,1768535431995,-500.0,0.00017866,2]
[402131104,1768535432004,-287.86177475,0.00017866,2]
[402131106,1768535432014,-3993.94065998,0.00017867,2]
[402131108,1768535432023,-3993.94065998,0.00017883,2]
[402131110,1768535432032,-1276.92217708,0.000179,2]
[402131114,1768535432067,-8723.07782292,0.000179,2]
[402131116,1768535432076,-163.10935959,0.000179,2]
[402131120,1768535437498,-9015.85975646,0.000179,2]
[402131121,1768535437514,-4619.82097281,0.000179,2]
[402131122,1768535437525,-6888.636184,0.000179,2]
[402131123,1768535437552,-822.627884,0.000179,2]
[402131124,1768535437563,-2266.71016909,0.000179,2]
[402131125,1768535437573,-3993.94065998,0.000179,2]
[402131126,1768535437582,-2135.22094604,0.000179,2]
[402131127,1768535437592,-145.79572543,0.000179,2]
[402131128,1768535437603,-354.20427457,0.000179,2]
[402131129,1768535437612,-500.0,0.000179,2]
[402131130,1768535437621,-500.0,0.000179,2]
[402131131,1768535437631,-500.0,0.000179,2]
[402131132,1768535437643,-500.0,0.000179,2]
[402131133,1768535437652,-500.0,0.000179,2]
[402131134,1768535437662,-204.0,0.00017968,2]
[402131135,1768535437671,-671.24099755,0.00017989,2]
[402131136,1768535437691,-217.68900245,0.00017989,2]
[402131137,1768535437700,-200.0,0.00017989,2]
[402131138,1768535437711,-200.0,0.00017989,2]
[402131139,1768535437720,-500.0,0.00017989,2]
[402131140,1768535438049,-500.0,0.00017989,2]
[402131141,1768535438059,-604.5268361,0.00017989,2]
[402131142,1768535438068,-626.22881488,0.00017989,2]
[402131143,1768535438078,-151.0,0.00017989,2]
[402131144,1768535438087,-151.0,0.00017989,2]
[402131145,1768535438097,-151.0,0.00017989,2]
[402131146,1768535438106,-151.0,0.00017989,2]
[402131147,1768535438115,-151.0,0.00017989,2]
[402131148,1768535438124,-151.0,0.00017989,2]
[402131149,1768535438134,-151.0,0.00017989,2]
[402131150,1768535438144,-151.0,0.00017989,2]
[402131151,1768535438154,-151.0,0.00017989,2]
[402131152,1768535438164,-151.0,0.00017989,2]
[402131153,1768535438173,-151.0,0.00017989,2]
[402131154,1768535438183,-500.0,0.00017999,2]
[402131155,1768535438193,-500.0,0.00017999,2]
[402131156,1768535438203,-420.65394013,0.00017999,2]
[402131157,1768535438213,-500.0,0.00017999,2]
[402131158,1768535438226,-500.0,0.00017999,2]
[402131159,1768535438236,-500.0,0.00017999,2]
[402131160,1768535438246,-509.0305839,0.00017999,2]
[402131161,1768535438255,-500.0,0.00017999,2]
[402131162,1768535438265,-197.11720894,0.00017999,2]
[402131163,1768535438277,-302.88279106,0.00017999,2]
[402131164,1768535438288,-528.31412043,0.00017999,2]
[402131165,1768535438297,-256.16635373,0.00017999,2]
[402131166,1768535438308,-283.08391421,0.00017999,2]
[402131167,1768535438317,-500.0,0.00017999,2]
[402131168,1768535438327,-452.75646901,0.00017999,2]
[402131169,1768535438336,-500.0,0.00017999,2]
[402131170,1768535438346,-500.0,0.00017999,2]
[402131171,1768535438355,-623.70540578,0.00017999,2]
[402131172,1768535438364,-500.0,0.00017999,2]
[402131173,1768535438374,-178.41544491,0.00018,2]
[402131174,1768535438384,-55799.39435564,0.00018,2]
[402131175,1768535438421,-689.65109152,0.00018,2]
[402131176,1768535438432,-467.6872795,0.00018,2]
[402131177,1768535438444,-18703.64843501,0.00018,2]
[402131178,1768535438456,-1164.50782599,0.00018,2]